bitfinex-derivatives/quotes_BTCF0:USTF0_20250904
["timestamp","ask_amount","ask_price","bid_price","bid_amount"]
[1756964725609,0.74946629,110710.0,110700.0,0.41047112]
[1756964725809,0.74946629,110710.0,110700.0,1.25491112]
[1756964726210,0.74946629,110710.0,110700.0,0.41047112]
[1756964726437,0.43946629,110710.0,110700.0,1.25491112]
[1756964726907,0.75946629,110710.0,110700.0,0.87984]
[1756964727109,0.75946629,110710.0,110700.0,1.25491112]
[1756964729813,0.43946629,110710.0,110700.0,1.25491112]
[1756964730015,0.77946629,110710.0,110700.0,1.25491112]
[1756964730210,0.77946629,110710.0,110700.0,0.87984]
[1756964730514,0.43946629,110710.0,110700.0,1.25491112]
[1756964730705,0.43946629,110710.0,110700.0,1.62998224]
[1756964730911,0.43946629,110710.0,110700.0,1.99998224]
[1756964731115,0.43946629,110710.0,110700.0,1.62998224]
[1756964731312,0.77946629,110710.0,110700.0,1.25491112]
[1756964732509,0.78946629,110710.0,110700.0,1.25491112]
[1756964732786,0.43946629,110710.0,110700.0,1.25491112]
[1756964735412,0.07866629,110710.0,110700.0,1.25491112]
[1756964735613,0.02865629,110710.0,110700.0,2.71012448]
[1756964735817,0.02865629,110710.0,110700.0,2.38012448]
[1756964736719,0.02865629,110710.0,110700.0,3.42122688]
[1756964736919,0.007,110710.0,110700.0,3.33092448]
[1756964737108,0.007,110710.0,110700.0,3.42122688]
[1756964737416,0.007,110710.0,110700.0,3.68642688]
[1756964738121,0.007,110710.0,110700.0,3.42122688]
[1756964739824,0.007,110710.0,110700.0,3.33092448]
[1756964740027,0.007,110710.0,110700.0,3.33112448]
[1756964740426,0.007,110710.0,110700.0,0.9862]
[1756964740632,0.007,110710.0,110700.0,3.33296448]
[1756964747438,0.007,110710.0,110700.0,3.59816448]
[1756964753339,0.007,110710.0,110700.0,3.68846618]
[1756964755039,0.007,110710.0,110700.0,4.04926618]
[1756964756845,0.007,110710.0,110700.0,4.30926618]
[1756964757041,0.007,110710.0,110700.0,4.04926618]
[1756964757543,0.007,110710.0,110700.0,4.33926618]
[1756964757933,0.007,110710.0,110700.0,4.04926618]
[1756964758938,0.04822,110740.0,110730.0,0.02875]
[1756964759139,0.07000215,110740.0,110730.0,2.75203448]
[1756964759538,0.07000215,110740.0,110730.0,1.25175]
[1756964759737,0.07000215,110740.0,110730.0,2.75203448]
[1756964759956,0.07000215,110740.0,110730.0,1.90903448]
[1756964760143,0.07800215,110740.0,110730.0,2.75750448]
[1756964761037,0.08200215,110740.0,110730.0,2.75850448]
[1756964761532,0.08200215,110740.0,110730.0,0.41526]
[1756964761735,0.07200215,110740.0,110730.0,2.75726448]
[1756964761959,0.07300215,110740.0,110730.0,2.75826448]
[1756964762445,0.07300215,110740.0,110730.0,2.83170375]
[1756964762850,0.02478215,110740.0,110730.0,3.09031448]
[1756964763340,0.02478215,110740.0,110730.0,0.74731]
[1756964763544,0.02478215,110740.0,110730.0,1.20999]
[1756964763746,0.02478215,110740.0,110730.0,1.96506112]
[1756964763942,0.02438215,110740.0,110730.0,1.96506112]
[1756964764855,0.02438215,110740.0,110730.0,1.96013224]
[1756964765445,0.02438215,110740.0,110730.0,2.31013224]
[1756964765748,0.02438215,110740.0,110730.0,1.96013224]
[1756964766053,0.02438215,110740.0,110730.0,2.29013224]
[1756964766347,0.02438215,110740.0,110730.0,2.31013224]
[1756964766551,0.02438215,110740.0,110730.0,1.96013224]
[1756964767350,0.02438215,110740.0,110730.0,2.33013224]
[1756964767551,0.02438215,110740.0,110730.0,1.96013224]
[1756964767745,0.02438215,110740.0,110730.0,2.28013224]
[1756964767950,0.02438215,110740.0,110730.0,2.35331888]
[1756964768146,0.02438215,110740.0,110730.0,2.37331888]
[1756964768346,0.02438215,110740.0,110730.0,2.03331888]
[1756964768554,0.02438215,110740.0,110730.0,2.36331888]
[1756964768757,0.02438215,110740.0,110730.0,2.78346112]
[1756964769053,0.02438215,110740.0,110730.0,1.94078112]
[1756964769250,0.02438215,110740.0,110730.0,3.12322112]
[1756964769439,0.02438215,110740.0,110730.0,3.21349692]
[1756964769658,0.02438215,110740.0,110730.0,3.45349692]
[1756964769950,0.02438215,110740.0,110730.0,3.21349692]
[1756964770152,0.02438215,110740.0,110730.0,3.68349692]
[1756964770352,0.02438215,110740.0,110730.0,3.21349692]
[1756964770961,0.02438215,110740.0,110730.0,3.12322112]
[1756964771653,0.02438215,110740.0,110730.0,3.12262112]
[1756964772553,0.02438215,110740.0,110730.0,2.28078112]
[1756964772854,0.02438215,110740.0,110730.0,3.12246112]
[1756964773555,0.02438215,110740.0,110730.0,3.1216676]
[1756964774048,0.02438215,110740.0,110730.0,3.3868676]
[1756964774556,0.003,110740.0,110730.0,2.2051876]
[1756964774743,0.003,110740.0,110730.0,3.4161476]
[1756964775579,0.003,110740.0,110730.0,3.3761476]
[1756964775758,0.003,110740.0,110730.0,2.2451876]
[1756964776056,0.02476737,110740.0,110730.0,3.3560676]
[1756964776752,0.02476737,110740.0,110730.0,1.85657664]
[1756964776948,0.02476737,110740.0,110730.0,3.3560676]
[1756964777853,0.003,110740.0,110730.0,3.3560676]
[1756964778052,0.02476654,110740.0,110730.0,3.3560676]
[1756964781058,0.02476654,110740.0,110730.0,3.7168676]
[1756964793567,0.02476654,110740.0,110730.0,3.8071455]
[1756964798271,0.02476654,110740.0,110730.0,4.0671455]
[1756964798464,0.02476654,110740.0,110730.0,3.8071455]
[1756964800372,0.02476654,110740.0,110730.0,4.2071455]
[1756964800571,0.02476654,110740.0,110730.0,3.8071455]
[1756964802585,0.02476654,110740.0,110730.0,4.0571455]
[1756964802959,0.02476654,110740.0,110730.0,3.8071455]
[1756964807274,0.02476654,110740.0,110730.0,2.9662655]
[1756964807477,0.02476654,110740.0,110730.0,3.8027855]
[1756964807790,0.02476654,110740.0,110730.0,2.9662655]
[1756964807967,0.02476654,110740.0,110730.0,3.7123876]
[1756964808882,0.02476654,110740.0,110730.0,3.8026656]
[1756964812885,0.02476654,110740.0,110730.0,4.2226656]
[1756964814169,0.02476654,110740.0,110730.0,3.8026656]
[1756964814681,0.02476654,110740.0,110730.0,4.0626656]
[1756964815179,0.02476654,110740.0,110730.0,3.8026656]
[1756964817487,0.02476654,110740.0,110730.0,2.8759876]
[1756964817783,0.04209654,110740.0,110730.0,3.7115476]
[1756964818316,0.04209654,110740.0,110730.0,3.7114676]
[1756964818479,0.02476654,110740.0,110730.0,3.7114676]
[1756964818685,0.04209654,110740.0,110730.0,3.7114676]
[1756964821087,0.04209654,110740.0,110730.0,2.8759876]
[1756964821281,0.04209654,110740.0,110730.0,3.7117876]
[1756964823405,0.02476654,110740.0,110730.0,3.7117876]
[1756964823790,0.02476654,110740.0,110730.0,3.802066]
[1756964824890,0.02476654,110740.0,110730.0,3.7117876]
[1756964826499,0.02476654,110740.0,110730.0,2.8759876]
[1756964826689,0.04209654,110740.0,110730.0,3.7113476]
[1756964830390,0.04209654,110740.0,110730.0,2.8759876]
[1756964830580,0.34154754,110740.0,110730.0,0.77852664]
[1756964830833,0.75074543,110740.0,110730.0,1.22473664]
[1756964831188,1.11074543,110740.0,110730.0,1.22477664]
[1756964831388,1.06234754,110740.0,110730.0,1.22477664]
[1756964834497,0.72234754,110740.0,110730.0,1.22477664]
[1756964837702,1.44740662,110740.0,110730.0,0.31651]
[1756964838001,1.44740662,110740.0,110730.0,0.12651]
[1756964839099,1.44720662,110740.0,110730.0,0.12651]
[1756964842409,1.44720662,110740.0,110730.0,0.08238]
[1756964842597,0.02839,110730.0,110720.0,0.0002]
[1756964842803,3.53093293,110730.0,110710.0,0.0172]
[1756964843109,0.76424908,110720.0,110710.0,0.04523]
[1756964843325,1.17721814,110720.0,110710.0,0.04503]
[1756964843907,1.17721814,110720.0,110710.0,0.04603]
[1756964844708,2.01165814,110720.0,110710.0,0.04603]
[1756964845204,2.01465814,110720.0,110710.0,0.04603]
[1756964845403,2.01865814,110720.0,110710.0,0.04603]
[1756964845610,2.01865814,110720.0,110710.0,0.02903]
[1756964845910,1.64359906,110720.0,110710.0,0.02903]
[1756964846104,2.01865814,110720.0,110710.0,0.02903]
[1756964846313,2.01865814,110720.0,110710.0,0.001]
[1756964847010,2.26865814,110720.0,110710.0,0.001]
[1756964848006,1.43421814,110720.0,110710.0,0.001]
[1756964848203,2.26873814,110720.0,110710.0,0.001]
[1756964849205,1.89367906,110720.0,110710.0,0.02903]
[1756964849406,2.26873814,110720.0,110710.0,0.04603]
[1756964851215,2.26873814,110720.0,110710.0,0.001]
[1756964853014,2.26881814,110720.0,110710.0,0.001]
[1756964853716,2.26881814,110720.0,110710.0,0.02903]
[1756964854020,2.26881814,110720.0,110710.0,0.02883]
[1756964854411,1.89375906,110720.0,110710.0,0.04583]
[1756964854624,2.26881814,110720.0,110710.0,0.04583]
[1756964856213,1.52375906,110720.0,110710.0,0.04583]
[1756964856419,2.28721603,110720.0,110710.0,0.04583]
[1756964860117,2.28765603,110720.0,110710.0,0.04583]
[1756964860317,2.23925814,110720.0,110710.0,0.04583]
[1756964862628,1.86419906,110720.0,110710.0,0.04583]
[1756964863129,2.23925814,110720.0,110710.0,0.04583]
[1756964863328,2.30369431,110720.0,110710.0,0.04583]
[1756964863737,2.30369431,110720.0,110710.0,0.0008]
[1756964864025,2.23925814,110720.0,110710.0,0.0008]
[1756964867924,1.86419906,110720.0,110710.0,0.0008]
[1756964868130,1.91273701,110720.0,110710.0,0.0008]
[1756964869131,1.91253701,110720.0,110710.0,0.0008]
[1756964870034,1.91253701,110720.0,110710.0,0.02771]
[1756964870427,1.91253701,110720.0,110710.0,0.0008]
[1756964871233,1.91253701,110720.0,110710.0,0.02771]
[1756964873435,1.91253701,110720.0,110710.0,0.0008]
[1756964873636,1.92843523,110720.0,110710.0,0.0008]
[1756964873834,1.92843523,110720.0,110710.0,0.02771]
[1756964874337,1.86399906,110720.0,110710.0,0.02771]
[1756964874541,1.86419906,110720.0,110710.0,0.02771]
[1756964875036,1.94444327,110720.0,110700.0,0.39225908]
[1756964875235,0.4535156,110710.0,110700.0,0.41916908]
[1756964875428,0.47528214,110710.0,110700.0,0.41896908]
[1756964876637,0.47828214,110710.0,110700.0,0.41996908]
[1756964877738,0.48028214,110710.0,110700.0,0.41996908]
[1756964879640,0.50028214,110710.0,110700.0,0.41996908]
[1756964883345,0.43535654,110710.0,110700.0,0.41996908]
[1756964884036,0.43535654,110710.0,110700.0,0.41976908]
[1756964884443,0.48407891,110710.0,110700.0,1.79494632]
[1756964884744,0.45628891,110710.0,110700.0,1.87494632]
[1756964885343,0.45628891,110710.0,110700.0,2.95958632]
[1756964885548,0.04676654,110710.0,110700.0,3.32038632]
[1756964886852,0.04676654,110710.0,110700.0,3.33038632]
[1756964886853,0.02676654,110710.0,110700.0,3.33038632]
[1756964888342,0.02676654,110710.0,110700.0,3.32038632]
[1756964888545,0.02676654,110710.0,110700.0,3.32030632]
[1756964888760,0.02676654,110710.0,110700.0,2.48574632]
[1756964888961,0.02676654,110710.0,110700.0,3.32030632]
[1756964889861,0.02676654,110710.0,110700.0,3.41060922]
[1756964890075,0.005,110710.0,110700.0,3.41060922]
[1756964891066,0.005,110710.0,110700.0,3.85060922]
[1756964891362,0.005,110710.0,110700.0,3.42060922]
[1756964891761,0.005,110710.0,110700.0,2.58604922]
[1756964892065,0.005,110710.0,110700.0,3.42056922]
[1756964892865,0.005,110710.0,110700.0,2.57604922]
[1756964893163,0.005,110710.0,110700.0,3.41052922]
[1756964895669,0.005,110710.0,110700.0,3.4103441]
[1756964899072,0.005,110710.0,110700.0,3.0495441]
[1756964899273,0.005,110710.0,110700.0,3.7711441]
[1756964900976,0.005,110710.0,110700.0,4.0311441]
[1756964901371,0.005,110710.0,110700.0,3.7711441]
[1756964901570,0.005,110710.0,110700.0,2.9366641]
[1756964901873,0.005,110710.0,110700.0,3.7709841]
[1756964903766,0.005,110710.0,110700.0,4.0609841]
[1756964905777,0.048421,110740.0,110730.0,0.04304]
[1756964905967,0.40014101,110740.0,110730.0,1.6130928]
[1756964906671,0.40014278,110740.0,110730.0,1.6130928]
[1756964907073,0.40514278,110740.0,110730.0,2.7381312]
[1756964907267,0.41214278,110740.0,110730.0,2.7391312]
[1756964908266,0.41214278,110740.0,110730.0,2.7381312]
[1756964908267,0.40214278,110740.0,110730.0,2.7381312]
[1756964908477,0.40514278,110740.0,110730.0,2.7391312]
[1756964908666,0.40514278,110740.0,110730.0,1.9048912]
[1756964908879,0.40514278,110740.0,110730.0,1.6140528]
[1756964909774,0.40514278,110740.0,110730.0,1.62747885]
[1756964910276,0.07514278,110740.0,110730.0,1.62747885]
[1756964910575,0.07514278,110740.0,110730.0,2.00249165]
[1756964911267,0.45514278,110740.0,110730.0,2.00249165]
[1756964912000,0.45514278,110740.0,110730.0,1.25246605]
[1756964912279,0.45514278,110740.0,110730.0,1.62743885]
[1756964913975,0.45494278,110740.0,110730.0,1.62743885]
[1756964914184,0.45494278,110740.0,110730.0,0.79327885]
[1756964914369,0.45494278,110740.0,110730.0,1.62739885]
[1756964914568,0.45494278,110740.0,110730.0,1.69785561]
[1756964915076,0.45494278,110740.0,110730.0,2.07286841]
[1756964915377,0.42758278,110740.0,110730.0,2.07286841]
[1756964915577,0.37758278,110740.0,110730.0,2.82289401]
[1756964919379,0.37758278,110740.0,110730.0,1.32284281]
[1756964919570,0.37758278,110740.0,110730.0,2.82289401]
[1756964920974,0.04758278,110740.0,110730.0,3.46809401]
[1756964921170,0.04758278,110740.0,110730.0,3.74837241]
[1756964922275,0.04758278,110740.0,110730.0,3.48317241]
[1756964923078,0.04758278,110740.0,110730.0,3.48301241]
[1756964923780,0.04758278,110740.0,110730.0,2.64905241]
[1756964924178,0.04758278,110740.0,110730.0,3.48301241]
[1756964928081,0.04758278,110740.0,110730.0,2.59877401]
[1756964928383,0.04758278,110740.0,110730.0,3.52289241]
[1756964928627,0.04758278,110740.0,110730.0,3.10261401]
[1756964928775,0.04758278,110740.0,110730.0,3.11261401]
[1756964929081,0.04758278,110740.0,110730.0,3.43261401]
[1756964929586,0.04758278,110740.0,110730.0,2.85261401]
[1756964929778,0.40758278,110740.0,110730.0,2.01877401]
[1756964929978,0.04758278,110740.0,110730.0,2.85257401]
[1756964931188,0.04758278,110740.0,110730.0,2.01877401]
[1756964931386,0.04758278,110740.0,110730.0,3.11773401]
[1756964932787,0.04758278,110740.0,110730.0,2.28397401]
[1756964932990,0.04758278,110740.0,110730.0,3.11773401]
[1756964933688,0.04758278,110740.0,110730.0,2.28397401]
[1756964933891,0.04758278,110740.0,110730.0,2.25397401]
[1756964934098,0.04758278,110740.0,110730.0,3.18769401]
[1756964934293,0.04758278,110740.0,110730.0,2.35397401]
[1756964934486,0.04758278,110740.0,110730.0,3.18769401]
[1756964934833,0.66362278,110740.0,110730.0,1.70185561]
[1756964937091,0.66362278,110740.0,110730.0,0.86813561]
[1756964937293,0.66362278,110740.0,110730.0,1.43661561]
[1756964939191,0.41362278,110740.0,110730.0,1.43661561]
[1756964941894,0.09362278,110740.0,110730.0,1.43661561]
[1756964942104,0.41362278,110740.0,110730.0,1.79741561]
[1756964942695,0.41362278,110740.0,110730.0,1.43661561]
[1756964942898,0.41362278,110740.0,110730.0,0.22792281]
[1756964943097,1.39943558,110740.0,110730.0,0.21449676]
[1756964943296,1.39943558,110740.0,110730.0,0.94809676]
[1756964943694,1.39943558,110740.0,110730.0,0.001]
[1756964944138,1.39923558,110740.0,110730.0,0.001]
[1756964944291,1.44795795,110740.0,110730.0,0.001]
[1756964944897,1.44795795,110740.0,110730.0,0.02777]
[1756964945601,1.44795795,110740.0,110730.0,0.001]
[1756964946390,1.44795795,110740.0,110730.0,0.02777]
[1756964946608,1.44795795,110740.0,110730.0,0.001]
[1756964946795,1.44795795,110740.0,110730.0,0.02777]
[1756964947303,1.02422278,110740.0,110730.0,0.001]
[1756964947505,1.39923558,110740.0,110730.0,0.001]
[1756964951206,1.3999714,110740.0,110730.0,0.001]
[1756964952610,1.3999714,110740.0,110730.0,0.02777]
[1756964953515,1.3999714,110740.0,110730.0,0.001]
[1756964953914,1.3999714,110740.0,110730.0,0.02739]
[1756964954110,1.0249586,110740.0,110730.0,0.04396]
[1756964954605,1.3999714,110740.0,110730.0,0.04396]
[1756964955006,1.3999714,110740.0,110730.0,0.001]
[1756964955413,1.4000543,110740.0,110730.0,0.001]
[1756964955808,1.44877667,110740.0,110730.0,0.02739]
[1756964956013,1.44877667,110740.0,110730.0,0.001]
[1756964956628,1.40032911,110740.0,110730.0,0.001]
[1756964956810,1.40032911,110740.0,110730.0,0.02739]
[1756964958419,1.40032911,110740.0,110730.0,0.001]
[1756964959211,1.40012911,110740.0,110730.0,0.001]
[1756964959519,2.23360911,110740.0,110730.0,0.04396]
[1756964959738,2.23360911,110740.0,110730.0,0.001]
[1756964960318,2.28233148,110740.0,110730.0,0.001]
[1756964960827,1.44885148,110740.0,110730.0,0.001]
[1756964961013,2.28233148,110740.0,110730.0,0.02739]
[1756964961824,2.28233148,110740.0,110730.0,0.001]
[1756964962221,2.28233148,110740.0,110730.0,0.02739]
[1756964963723,2.28233148,110740.0,110730.0,0.001]
[1756964964041,2.28233148,110740.0,110730.0,0.02739]
[1756964965523,2.28233148,110740.0,110730.0,0.001]
[1756964965820,2.28225148,110740.0,110730.0,0.02739]
[1756964966614,2.28225148,110740.0,110730.0,0.001]
[1756964968424,2.23352911,110740.0,110730.0,0.001]
[1756964968928,1.85843341,110740.0,110730.0,0.001]
[1756964969127,2.23352911,110740.0,110730.0,0.001]
[1756964971124,2.23344911,110740.0,110730.0,0.001]
[1756964973925,2.23344911,110740.0,110730.0,0.0008]
[1756964974531,1.98344911,110740.0,110730.0,0.0008]
[1756964977732,3.17366181,110740.0,110720.0,0.0002]
[1756964978034,1.8887128,110730.0,110720.0,0.02659]
[1756964978221,1.1541265,110730.0,110720.0,0.02639]
[1756964978623,1.55816359,110730.0,110710.0,0.02904113]
[1756964978829,0.81213442,110720.0,110710.0,0.05543113]
[1756964979033,1.15413101,110720.0,110710.0,0.05523113]
[1756964979434,0.77903531,110720.0,110710.0,0.05523113]
[1756964979628,1.15413101,110720.0,110710.0,0.05523113]
[1756964980935,1.17522355,110720.0,110710.0,0.05823113]
[1756964981127,1.17622355,110720.0,110710.0,0.05823113]
[1756964981329,1.17722355,110720.0,110710.0,0.06023113]
[1756964982736,1.17622355,110720.0,110710.0,0.05723113]
[1756964982923,1.17922355,110720.0,110710.0,0.05623113]
[1756964983129,1.18022355,110720.0,110710.0,0.05723113]
[1756964983636,2.01338355,110720.0,110710.0,0.05723113]
[1756964984537,1.96467483,110720.0,110710.0,0.05723113]
[1756964985346,1.13151483,110720.0,110710.0,0.05723113]
[1756964985537,1.96459483,110720.0,110710.0,0.05723113]
[1756964986332,0.81151483,110720.0,110710.0,0.05723113]
[1756964986538,0.80641913,110720.0,110710.0,0.05723113]
[1756964987063,0.80641913,110720.0,110710.0,0.43232683]
[1756964987830,0.80641913,110720.0,110710.0,0.05723113]
[1756964988536,0.43641913,110720.0,110710.0,0.05723113]
[1756964988731,0.76641913,110720.0,110710.0,0.05723113]
[1756964989171,0.53641913,110720.0,110710.0,0.05723113]
[1756964989340,0.18561913,110720.0,110710.0,0.05723113]
[1756964989637,0.41561913,110720.0,110710.0,0.43232683]
[1756964990541,0.77641913,110720.0,110710.0,0.43232683]
[1756964991338,0.79641913,110720.0,110710.0,0.43232683]
[1756964991641,0.78641913,110720.0,110710.0,0.43232683]
[1756964991840,0.17561913,110720.0,110710.0,0.43232683]
[1756964992041,0.13808913,110720.0,110710.0,0.68232683]
[1756964992943,0.13808913,110720.0,110710.0,1.04312683]
[1756964995645,0.04808913,110720.0,110710.0,1.39312683]
[1756964998045,0.04808913,110720.0,110710.0,1.42312683]
[1756964998747,0.04808913,110720.0,110710.0,1.40312683]
[1756964999137,0.04808913,110720.0,110710.0,1.04312683]
[1756964999344,0.04808913,110720.0,110710.0,1.62592683]
[1756964999541,0.04808913,110720.0,110710.0,1.89112683]
[1756965000238,0.04808913,110720.0,110710.0,1.05832683]
[1756965000442,0.04808913,110720.0,110710.0,1.89108683]
[1756965003448,0.04808913,110720.0,110710.0,2.25108683]
[1756965003757,0.04808913,110720.0,110710.0,1.89108683]
[1756965003938,0.04808913,110720.0,110710.0,2.24108683]
[1756965004150,0.04808913,110720.0,110710.0,1.89108683]
[1756965004349,0.04808913,110720.0,110710.0,1.05832683]
[1756965004562,0.04808913,110720.0,110710.0,1.89096683]
[1756965005554,0.04808913,110720.0,110710.0,1.05832683]
[1756965005754,0.04808913,110720.0,110710.0,1.89092683]
[1756965008854,0.04808913,110720.0,110710.0,1.89084683]
[1756965012456,0.04808913,110720.0,110710.0,1.52992683]
[1756965012657,0.32269913,110720.0,110710.0,1.52992683]
[1756965012856,0.68269913,110720.0,110710.0,1.52992683]
[1756965014168,0.68274225,110720.0,110710.0,1.52992683]
[1756965015467,0.68274225,110720.0,110710.0,0.69752683]
[1756965015667,0.68274225,110720.0,110710.0,1.52988683]
[1756965016460,0.68274225,110720.0,110710.0,0.32243113]
[1756965016661,0.68274225,110720.0,110710.0,1.15475113]
[1756965017262,0.68274225,110720.0,110710.0,0.88955113]
[1756965017463,0.68274225,110720.0,110710.0,1.2646978]
[1756965017664,0.43274225,110720.0,110710.0,0.88955113]
[1756965018668,0.43274225,110720.0,110710.0,1.2646978]
[1756965020273,0.07274225,110720.0,110710.0,1.2646978]
[1756965020469,0.04813225,110720.0,110710.0,1.2646978]
[1756965021371,0.37813225,110720.0,110710.0,1.2646978]
[1756965022973,0.40245225,110720.0,110710.0,1.2645378]
[1756965027370,0.40245225,110720.0,110710.0,0.4323778]
[1756965027569,0.40245225,110720.0,110710.0,1.2644578]
[1756965031475,0.40245225,110720.0,110710.0,0.88931113]
[1756965031675,0.40245225,110720.0,110710.0,1.2644578]
[1756965032576,0.40245225,110720.0,110710.0,0.88931113]
[1756965032813,1.02759892,110720.0,110710.0,0.05723113]
[1756965033073,1.43710764,110720.0,110710.0,0.04463]
[1756965033472,0.81196097,110720.0,110710.0,0.41977667]
[1756965033715,0.48196097,110720.0,110710.0,0.04463]
[1756965033995,0.07245225,110720.0,110710.0,0.04463]
[1756965034173,0.82176097,110720.0,110710.0,0.04463]
[1756965034570,0.77305225,110720.0,110710.0,0.04463]
[1756965034895,0.77305225,110720.0,110710.0,0.05634828]
[1756965037372,1.39819892,110720.0,110710.0,0.04463]
[1756965037674,1.02305225,110720.0,110710.0,0.04463]
[1756965038572,1.02305225,110720.0,110710.0,0.002]
[1756965038573,1.39819892,110720.0,110710.0,0.002]
[1756965038773,2.22999892,110720.0,110710.0,0.002]
[1756965040571,2.27870764,110720.0,110710.0,0.002]
[1756965041380,2.22999892,110720.0,110710.0,0.002]
[1756965041579,2.28967484,110720.0,110710.0,0.002]
[1756965042184,2.30596782,110720.0,110700.0,0.017]
[1756965042376,0.80697007,110710.0,110700.0,0.017]
[1756965042680,0.80697007,110710.0,110700.0,0.0429]
[1756965042681,1.20900978,110710.0,110700.0,0.0429]
[1756965043577,1.21100978,110710.0,110700.0,0.001]
[1756965043777,1.21444978,110710.0,110700.0,0.001]
[1756965043978,1.21444978,110710.0,110700.0,0.002]
[1756965044178,1.2144083,110710.0,110700.0,0.002]
[1756965044678,1.2164083,110710.0,110700.0,0.002]
[1756965045578,1.4664083,110710.0,110700.0,0.002]
[1756965050387,1.4664083,110710.0,110690.0,0.0002]
[1756965050584,0.75514667,110700.0,110690.0,0.0263]
[1756965050785,1.97975519,110700.0,110690.0,0.04044]
[1756965051785,1.97975519,110700.0,110690.0,0.04144]
[1756965052183,1.98175519,110700.0,110690.0,0.04244]
[1756965053802,1.15007519,110700.0,110690.0,0.04144]
[1756965053988,1.98267519,110700.0,110690.0,0.04144]
[1756965054186,1.15107519,110700.0,110690.0,0.04144]
[1756965054380,1.98267519,110700.0,110690.0,0.04144]
[1756965054580,1.60752852,110700.0,110690.0,0.04144]
[1756965054776,1.98267519,110700.0,110690.0,0.04144]
[1756965055682,1.15107519,110700.0,110690.0,0.04144]
[1756965055885,0.77592852,110700.0,110690.0,0.04144]
[1756965056193,1.15107519,110700.0,110690.0,0.04144]
[1756965057692,1.98267519,110700.0,110690.0,0.04144]
[1756965062493,1.15107519,110700.0,110690.0,0.04144]
[1756965062701,1.17107519,110700.0,110690.0,0.04144]
[1756965062900,2.00251519,110700.0,110690.0,0.04144]
[1756965065207,2.00247519,110700.0,110690.0,0.04144]
[1756965067298,2.00247519,110700.0,110690.0,0.001]
[1756965067499,2.00247519,110700.0,110690.0,0.00551]
[1756965067908,2.00247519,110700.0,110690.0,0.03161]
[1756965068112,2.00247519,110700.0,110690.0,0.04595]
[1756965071105,2.05109859,110700.0,110690.0,0.04595]
[1756965072906,0.47455192,110700.0,110690.0,0.04595]
[1756965073107,2.06097859,110700.0,110690.0,0.04595]
[1756965074211,2.01235519,110700.0,110690.0,0.04595]
[1756965076610,1.15107519,110700.0,110690.0,0.04595]
[1756965076804,1.63227519,110700.0,110690.0,0.04595]
[1756965077011,2.01227519,110700.0,110690.0,0.04595]
[1756965077402,2.06089859,110700.0,110690.0,0.04595]
[1756965079410,2.06106941,110700.0,110690.0,0.04595]
[1756965079812,1.68575192,110700.0,110690.0,0.04595]
[1756965080013,0.85455192,110700.0,110690.0,0.04595]
[1756965080213,2.06102941,110700.0,110690.0,0.04595]
[1756965081617,2.01240601,110700.0,110690.0,0.04595]
[1756965082116,1.68571192,110700.0,110690.0,0.04595]
[1756965082315,2.06102941,110700.0,110690.0,0.04595]
[1756965083516,2.01240601,110700.0,110690.0,0.04595]
[1756965085610,0.08512852,110700.0,110690.0,0.67126749]
[1756965085909,0.06512852,110700.0,110690.0,1.50230749]
[1756965086510,0.11375192,110700.0,110690.0,1.50230749]
[1756965086712,0.06512852,110700.0,110690.0,1.50230749]
[1756965087424,0.06512852,110700.0,110690.0,1.12699]
[1756965087608,0.06512852,110700.0,110690.0,1.50230749]
[1756965088113,0.39512852,110700.0,110690.0,0.29595]
[1756965088318,0.39512852,110700.0,110690.0,1.50226749]
[1756965089016,0.06512852,110700.0,110690.0,1.50226749]
[1756965090119,0.41512852,110700.0,110690.0,0.67126749]
[1756965090319,0.06512852,110700.0,110690.0,1.50218749]
[1756965093623,0.06512852,110700.0,110690.0,1.50214749]
[1756965094017,0.06512852,110700.0,110690.0,0.67126749]
[1756965094221,0.06512852,110700.0,110690.0,1.12679]
[1756965094424,0.06512852,110700.0,110690.0,1.50210749]
[1756965094831,0.43512852,110700.0,110690.0,1.50210749]
[1756965095328,0.43512852,110700.0,110690.0,0.67126749]
[1756965095628,0.42512852,110700.0,110690.0,1.50206749]
[1756965095825,0.06512852,110700.0,110690.0,1.50206749]
[1756965096523,0.40512852,110700.0,110690.0,1.50206749]
[1756965096713,0.06512852,110700.0,110690.0,1.50206749]
[1756965096916,0.39512852,110700.0,110690.0,1.50206749]
[1756965099320,0.06512852,110700.0,110690.0,1.50206749]
[1756965099626,0.44512852,110700.0,110690.0,1.50206749]
[1756965099926,0.06512852,110700.0,110690.0,1.50206749]
[1756965100118,0.39512852,110700.0,110690.0,1.50206749]
[1756965100318,0.06512852,110700.0,110690.0,1.50206749]
[1756965100823,0.38512852,110700.0,110690.0,1.50206749]
[1756965101027,0.06512852,110700.0,110690.0,1.50206749]
[1756965103830,0.40512852,110700.0,110690.0,1.50206749]
[1756965105029,0.40512852,110700.0,110690.0,1.12675]
[1756965105232,0.40512852,110700.0,110690.0,1.50206749]
[1756965105529,0.06512852,110700.0,110690.0,1.50206749]
[1756965105731,0.06512852,110700.0,110690.0,1.50186749]
[1756965106036,0.42512852,110700.0,110690.0,1.50186749]
[1756965107032,0.78592852,110700.0,110690.0,1.50186749]
[1756965108233,0.78592852,110700.0,110690.0,0.67126749]
[1756965108430,0.42512852,110700.0,110690.0,1.50182749]
[1756965108726,0.78592852,110700.0,110690.0,1.50182749]
[1756965110024,0.42592852,110700.0,110690.0,1.50182749]
[1756965110328,0.77592852,110700.0,110690.0,1.50182749]
[1756965113533,0.77592852,110700.0,110690.0,1.12651]
[1756965113728,0.77592852,110700.0,110690.0,1.50182749]
[1756965114327,0.77592852,110700.0,110690.0,0.67126749]
[1756965114529,0.77592852,110700.0,110690.0,1.50170749]
[1756965116630,0.41512852,110700.0,110690.0,1.50170749]
[1756965117022,0.39313029,110700.0,110690.0,1.50170749]
[1756965117222,0.04590336,110700.0,110690.0,1.50170749]
[1756965117932,0.39590336,110700.0,110690.0,1.50170749]
[1756965118132,0.04590336,110700.0,110690.0,1.50170749]
[1756965119432,0.40590336,110700.0,110690.0,1.25170749]
[1756965119639,0.04590336,110700.0,110690.0,1.25170749]
[1756965120667,0.02497307,110700.0,110690.0,1.25170749]
[1756965120835,0.02497307,110700.0,110690.0,1.61250749]
[1756965121137,0.02497307,110700.0,110690.0,1.97250749]
[1756965124036,0.02497307,110700.0,110690.0,2.22250749]
[1756965126429,0.02497307,110700.0,110690.0,2.31281859]
[1756965129932,0.02497307,110700.0,110690.0,2.57801859]
[1756965131649,0.02497307,110700.0,110690.0,1.60726749]
[1756965131932,0.02497307,110700.0,110690.0,2.43734749]
[1756965132733,0.02497307,110700.0,110690.0,2.43730749]